[Event "Titled Tuesday Blitz June 27 Early 2023"]
[White "kuanysh1981"]
[Black "Narayanan.S.L"]
[BlackFideId "5058422"]
[WhiteElo "2533"]
[BlackElo "2989"]
[Result "0-1"]
[Round "1"]
[TimeControl "180+2"]
[Date "2023.06.27"]
[WhiteClock "0:01:03"]
[BlackClock "0:01:47"]
[Board "16"]

1. d4 {[%clk 0:03:00]}  d5 {[%clk 0:02:58]} 2. Nf3 {[%clk 0:03:00]}  Bf5 {[%clk 0:02:58]} 3. g3 {[%clk 0:03:00]}  Nc6 {[%clk 0:02:57]} 4. Bg2 {[%clk 0:02:59]}  Qd7 {[%clk 0:02:58]} 5. c4 {[%clk 0:02:58]}  dxc4 {[%clk 0:02:55]} 6. Nc3 {[%clk 0:02:58]}  Nf6 {[%clk 0:02:54]} 7. O-O {[%clk 0:02:53]}  O-O-O {[%clk 0:02:53]} 8. Qa4 {[%clk 0:02:52]}  Kb8 {[%clk 0:02:50]} 9. Qxc4 {[%clk 0:02:48]}  e6 {[%clk 0:02:49]} 10. Ne5 {[%clk 0:02:45]}  Nxe5 {[%clk 0:02:48]} 11. dxe5 {[%clk 0:02:45]}  Nd5 {[%clk 0:02:49]} 12. Nxd5 {[%clk 0:02:42]}  exd5 {[%clk 0:02:49]} 13. Qb3 {[%clk 0:02:42]}  Bc5 {[%clk 0:02:47]} 14. Bg5 {[%clk 0:02:40]}  c6 {[%clk 0:02:20]} 15. Bxd8 {[%clk 0:02:36]}  Rxd8 {[%clk 0:02:21]} 16. Rac1 {[%clk 0:02:28]}  Bb6 {[%clk 0:02:21]} 17. Kh1 {[%clk 0:02:22]}  h5 {[%clk 0:02:21]} 18. h4 {[%clk 0:02:03]}  g5 {[%clk 0:02:21]} 19. Qb4 {[%clk 0:01:59]}  gxh4 {[%clk 0:02:14]} 20. Qxh4 {[%clk 0:01:59]}  Bg4 {[%clk 0:02:13]} 21. e4 {[%clk 0:01:55]}  d4 {[%clk 0:02:13]} 22. f3 {[%clk 0:01:55]}  Be6 {[%clk 0:02:12]} 23. b3 {[%clk 0:01:54]}  d3 {[%clk 0:02:12]} 24. Rfd1 {[%clk 0:01:54]}  d2 {[%clk 0:02:11]} 25. Rc2 {[%clk 0:01:47]}  Be3 {[%clk 0:02:11]} 26. Bf1 {[%clk 0:01:42]}  a5 {[%clk 0:02:11]} 27. Be2 {[%clk 0:01:38]}  Qd4 {[%clk 0:02:10]} 28. Kg2 {[%clk 0:01:36]}  Rg8 {[%clk 0:02:09]} 29. Qxh5 {[%clk 0:01:31]}  Bf4 {[%clk 0:02:07]} 30. g4 {[%clk 0:01:30]}  a4 {[%clk 0:01:48]} 31. Bc4 {[%clk 0:01:30]}  axb3 {[%clk 0:01:47]} 32. axb3 {[%clk 0:01:29]}  Bxc4 {[%clk 0:01:47]} 33. Rxc4 {[%clk 0:01:28]}  Qe3 {[%clk 0:01:47]} 34. Rf1 {[%clk 0:01:09]}  Qe2+ {[%clk 0:01:47]} 35. Rf2 {[%clk 0:01:03]}  d1=Q {[%clk 0:01:47]} 0-1


[Site "https://www.chess.com"]

[Event "Titled Tuesday Blitz June 27 Early 2023"]
[White "Hakobyan, Aram"]
[Black "Kazakov, Mikhail"]
[WhiteFideId "13306677"]
[BlackFideId "14102749"]
[WhiteElo "2987"]
[BlackElo "2532"]
[Result "1-0"]
[Round "1"]
[TimeControl "180+2"]
[Date "2023.06.27"]
[WhiteClock "0:01:48"]
[BlackClock "0:00:19"]
[Board "17"]

1. d4 {[%clk 0:03:00]}  Nf6 {[%clk 0:02:57]} 2. c4 {[%clk 0:03:01]}  e6 {[%clk 0:02:57]} 3. Nc3 {[%clk 0:03:01]}  Bb4 {[%clk 0:02:56]} 4. e3 {[%clk 0:03:02]}  O-O {[%clk 0:02:47]} 5. a3 {[%clk 0:03:01]}  Bxc3+ {[%clk 0:02:45]} 6. bxc3 {[%clk 0:03:02]}  d5 {[%clk 0:02:45]} 7. cxd5 {[%clk 0:03:02]}  exd5 {[%clk 0:02:42]} 8. Bd3 {[%clk 0:03:02]}  c5 {[%clk 0:02:39]} 9. Ne2 {[%clk 0:03:02]}  b6 {[%clk 0:02:36]} 10. O-O {[%clk 0:03:01]}  Ba6 {[%clk 0:02:33]} 11. Ng3 {[%clk 0:03:01]}  Bxd3 {[%clk 0:02:27]} 12. Qxd3 {[%clk 0:03:01]}  Nc6 {[%clk 0:02:28]} 13. f3 {[%clk 0:03:01]}  Rc8 {[%clk 0:02:23]} 14. Bb2 {[%clk 0:03:01]}  cxd4 {[%clk 0:01:37]} 15. cxd4 {[%clk 0:02:59]}  h5 {[%clk 0:01:38]} 16. Rae1 {[%clk 0:02:58]}  g6 {[%clk 0:01:22]} 17. e4 {[%clk 0:02:34]}  h4 {[%clk 0:01:21]} 18. Nh1 {[%clk 0:02:34]}  Qd7 {[%clk 0:01:14]} 19. Nf2 {[%clk 0:02:28]}  Nh5 {[%clk 0:01:07]} 20. Qe3 {[%clk 0:02:05]}  Kh7 {[%clk 0:00:55]} 21. Ng4 {[%clk 0:02:04]}  Rh8 {[%clk 0:00:33]} 22. Qh6+ {[%clk 0:01:52]}  Kg8 {[%clk 0:00:33]} 23. Qxh5 {[%clk 0:01:53]}  Rxh5 {[%clk 0:00:25]} 24. Nf6+ {[%clk 0:01:53]}  Kg7 {[%clk 0:00:25]} 25. Nxd7 {[%clk 0:01:54]}  Rd8 {[%clk 0:00:19]} 26. Ne5 {[%clk 0:01:48]} 1-0


[Site "https://www.chess.com"]

[Event "Titled Tuesday Blitz June 27 Early 2023"]
[White "Sjugirov, Sanan"]
[Black "Deng, Henry"]
[WhiteFideId "4189302"]
[BlackFideId "30965454"]
[WhiteElo "2974"]
[BlackElo "2530"]
[Result "1-0"]
[Round "1"]
[TimeControl "180+2"]
[Date "2023.06.27"]
[WhiteClock "0:00:06"]
[BlackClock "0:00:00"]
[Board "19"]

1. d4 {[%clk 0:02:57]}  d5 {[%clk 0:02:59]} 2. c4 {[%clk 0:02:57]}  e6 {[%clk 0:02:56]} 3. Nc3 {[%clk 0:02:57]}  Nf6 {[%clk 0:02:46]} 4. cxd5 {[%clk 0:02:57]}  exd5 {[%clk 0:02:46]} 5. Bg5 {[%clk 0:02:56]}  Be7 {[%clk 0:02:38]} 6. e3 {[%clk 0:02:56]}  c6 {[%clk 0:02:35]} 7. Bd3 {[%clk 0:02:55]}  O-O {[%clk 0:02:32]} 8. Nge2 {[%clk 0:02:55]}  Re8 {[%clk 0:02:21]} 9. Qc2 {[%clk 0:02:53]}  h6 {[%clk 0:02:19]} 10. Bh4 {[%clk 0:02:53]}  a5 {[%clk 0:02:15]} 11. O-O {[%clk 0:02:52]}  Na6 {[%clk 0:02:06]} 12. a3 {[%clk 0:02:52]}  Nc7 {[%clk 0:02:05]} 13. Bg3 {[%clk 0:02:42]}  Bd6 {[%clk 0:02:03]} 14. Rad1 {[%clk 0:02:22]}  Qe7 {[%clk 0:01:51]} 15. Bxd6 {[%clk 0:02:19]}  Qxd6 {[%clk 0:01:50]} 16. Ng3 {[%clk 0:02:20]}  Bd7 {[%clk 0:01:29]} 17. Na4 {[%clk 0:02:09]}  Ne6 {[%clk 0:01:22]} 18. Rb1 {[%clk 0:01:59]}  Rab8 {[%clk 0:01:09]} 19. Rfc1 {[%clk 0:01:56]}  Red8 {[%clk 0:00:45]} 20. b4 {[%clk 0:01:37]}  b5 {[%clk 0:00:37]} 21. Nc5 {[%clk 0:01:32]}  Nxc5 {[%clk 0:00:37]} 22. Qxc5 {[%clk 0:01:20]}  Qxc5 {[%clk 0:00:30]} 23. Rxc5 {[%clk 0:01:21]}  axb4 {[%clk 0:00:28]} 24. axb4 {[%clk 0:01:20]}  Ra8 {[%clk 0:00:26]} 25. Rc3 {[%clk 0:01:14]}  Ne8 {[%clk 0:00:23]} 26. Bf5 {[%clk 0:01:11]}  Ra6 {[%clk 0:00:20]} 27. Bxd7 {[%clk 0:01:08]}  Rxd7 {[%clk 0:00:21]} 28. Rbc1 {[%clk 0:01:08]}  Rc7 {[%clk 0:00:21]} 29. e4 {[%clk 0:00:59]}  dxe4 {[%clk 0:00:19]} 30. Nxe4 {[%clk 0:01:00]}  Ra4 {[%clk 0:00:19]} 31. Rb1 {[%clk 0:00:51]}  Re7 {[%clk 0:00:18]} 32. f3 {[%clk 0:00:49]}  Ra2 {[%clk 0:00:19]} 33. Rxc6 {[%clk 0:00:40]}  f5 {[%clk 0:00:20]} 34. Ng3 {[%clk 0:00:41]}  Nf6 {[%clk 0:00:16]} 35. Rc5 {[%clk 0:00:14]}  f4 {[%clk 0:00:15]} 36. Re5 {[%clk 0:00:15]}  Rc7 {[%clk 0:00:14]} 37. Ne2 {[%clk 0:00:14]}  Rcc2 {[%clk 0:00:14]} 38. Kf1 {[%clk 0:00:10]}  g5 {[%clk 0:00:12]} 39. Re1 {[%clk 0:00:06]}  Rab2 {[%clk 0:00:10]} 40. Rxb5 {[%clk 0:00:06]}  g4 {[%clk 0:00:07]} 41. Rf5 {[%clk 0:00:04]}  Kg7 {[%clk 0:00:06]} 42. Rxf4 {[%clk 0:00:04]}  gxf3 {[%clk 0:00:07]} 43. gxf3 {[%clk 0:00:03]}  Rxb4 {[%clk 0:00:07]} 44. Rh4 {[%clk 0:00:02]}  Rbb2 {[%clk 0:00:08]} 45. Rf4 {[%clk 0:00:02]}  Nd5 {[%clk 0:00:08]} 46. Re4 {[%clk 0:00:02]}  Nc3 {[%clk 0:00:07]} 47. Re3 {[%clk 0:00:02]}  Nd5 {[%clk 0:00:06]} 48. Re5 {[%clk 0:00:02]}  Nc3 {[%clk 0:00:06]} 49. Re7+ {[%clk 0:00:02]}  Kf6 {[%clk 0:00:06]} 50. Re3 {[%clk 0:00:03]}  Nd5 {[%clk 0:00:05]} 51. Re5 {[%clk 0:00:03]}  Nc3 {[%clk 0:00:06]} 52. Kf2 {[%clk 0:00:04]}  Rd2 {[%clk 0:00:04]} 53. Re3 {[%clk 0:00:03]}  Nd1+ {[%clk 0:00:03]} 54. Rxd1 {[%clk 0:00:03]}  Rxd1 {[%clk 0:00:04]} 55. Re4 {[%clk 0:00:04]}  Rdd2 {[%clk 0:00:04]} 56. h3 {[%clk 0:00:04]}  Kf5 {[%clk 0:00:05]} 57. Rf4+ {[%clk 0:00:04]}  Kg5 {[%clk 0:00:04]} 58. Re4 {[%clk 0:00:05]}  Kf5 {[%clk 0:00:04]} 59. h4 {[%clk 0:00:06]}  Kf6 {[%clk 0:00:05]} 60. Rf4+ {[%clk 0:00:06]}  Kg6 {[%clk 0:00:05]} 61. Re4 {[%clk 0:00:07]}  Kf5 {[%clk 0:00:05]} 62. Rf4+ {[%clk 0:00:07]}  Ke6 {[%clk 0:00:05]} 63. Re4+ {[%clk 0:00:08]}  Kd5 {[%clk 0:00:06]} 64. Ke1 {[%clk 0:00:07]}  Rdc2 {[%clk 0:00:05]} 65. Nf4+ {[%clk 0:00:06]}  Kd6 {[%clk 0:00:05]} 66. Ne2 {[%clk 0:00:05]}  Kd5 {[%clk 0:00:05]} 67. h5 {[%clk 0:00:05]}  Rb1+ {[%clk 0:00:04]} 68. Kf2 {[%clk 0:00:05]}  Rbb2 {[%clk 0:00:05]} 69. Kf1 {[%clk 0:00:05]}  Rb1+ {[%clk 0:00:05]} 70. Kf2 {[%clk 0:00:05]}  Rbb2 {[%clk 0:00:06]} 71. Re5+ {[%clk 0:00:06]}  Kd6 {[%clk 0:00:05]} 72. Re3 {[%clk 0:00:06]}  Kd5 {[%clk 0:00:05]} 73. Re4 {[%clk 0:00:07]}  Kd6 {[%clk 0:00:04]} 74. f4 {[%clk 0:00:05]}  Kd5 {[%clk 0:00:03]} 75. Re3 {[%clk 0:00:06]}  Rd2 {[%clk 0:00:00]} 76. f5 {[%clk 0:00:06]} 1-0


[Site "https://www.chess.com"]

[Event "Titled Tuesday Blitz June 27 Early 2023"]
[White "Yaniuk, Volodymyr"]
[Black "Van Foreest, Jorden"]
[WhiteFideId "14133083"]
[BlackFideId "1039784"]
[WhiteElo "2528"]
[BlackElo "2973"]
[Result "0-1"]
[Round "1"]
[TimeControl "180+2"]
[Date "2023.06.27"]
[WhiteClock "0:00:03"]
[BlackClock "0:01:16"]
[Board "20"]

1. d4 {[%clk 0:02:55]}  Nf6 {[%clk 0:02:59]} 2. c4 {[%clk 0:02:51]}  a6 {[%clk 0:03:00]} 3. e3 {[%clk 0:02:48]}  e6 {[%clk 0:02:59]} 4. Nc3 {[%clk 0:02:48]}  d5 {[%clk 0:02:57]} 5. cxd5 {[%clk 0:02:44]}  exd5 {[%clk 0:02:56]} 6. Bd3 {[%clk 0:02:42]}  Bd6 {[%clk 0:02:52]} 7. Nf3 {[%clk 0:02:41]}  O-O {[%clk 0:02:52]} 8. O-O {[%clk 0:02:39]}  Re8 {[%clk 0:02:53]} 9. b3 {[%clk 0:02:38]}  Bg4 {[%clk 0:02:50]} 10. Bb2 {[%clk 0:02:37]}  Nbd7 {[%clk 0:02:49]} 11. Ne2 {[%clk 0:02:36]}  c6 {[%clk 0:02:47]} 12. Ng3 {[%clk 0:02:33]}  Ne4 {[%clk 0:02:48]} 13. Be2 {[%clk 0:02:29]}  Nxg3 {[%clk 0:02:41]} 14. hxg3 {[%clk 0:02:30]}  Nf6 {[%clk 0:02:40]} 15. Nd2 {[%clk 0:02:24]}  Bxe2 {[%clk 0:02:40]} 16. Qxe2 {[%clk 0:02:25]}  Ne4 {[%clk 0:02:39]} 17. Nxe4 {[%clk 0:02:24]}  Rxe4 {[%clk 0:02:40]} 18. a4 {[%clk 0:02:19]}  Qg5 {[%clk 0:02:40]} 19. Qf3 {[%clk 0:02:17]}  h5 {[%clk 0:02:37]} 20. Ba3 {[%clk 0:02:13]}  Bc7 {[%clk 0:02:37]} 21. Rac1 {[%clk 0:02:12]}  Rae8 {[%clk 0:02:36]} 22. b4 {[%clk 0:02:09]}  R8e6 {[%clk 0:02:35]} 23. Rc5 {[%clk 0:02:05]}  h4 {[%clk 0:02:32]} 24. gxh4 {[%clk 0:02:01]}  Qxh4 {[%clk 0:02:22]} 25. g3 {[%clk 0:01:58]}  Qh3 {[%clk 0:02:22]} 26. Qg2 {[%clk 0:01:56]}  Qf5 {[%clk 0:02:11]} 27. b5 {[%clk 0:01:50]}  Rh6 {[%clk 0:01:51]} 28. bxa6 {[%clk 0:01:41]}  bxa6 {[%clk 0:01:51]} 29. Rfc1 {[%clk 0:01:19]}  Qg6 {[%clk 0:01:43]} 30. Bb4 {[%clk 0:00:59]}  Re6 {[%clk 0:01:26]} 31. Be1 {[%clk 0:00:54]}  Qf5 {[%clk 0:01:25]} 32. R5c3 {[%clk 0:00:32]}  Qg4 {[%clk 0:01:24]} 33. Kf1 {[%clk 0:00:21]}  Ba5 {[%clk 0:01:20]} 34. Rb3 {[%clk 0:00:19]}  Bxe1 {[%clk 0:01:20]} 35. Rxe1 {[%clk 0:00:20]}  Ref6 {[%clk 0:01:19]} 36. Kg1 {[%clk 0:00:19]}  Rh3 {[%clk 0:01:17]} 37. Rb8+ {[%clk 0:00:17]}  Kh7 {[%clk 0:01:17]} 38. Re8 {[%clk 0:00:15]}  Rfh6 {[%clk 0:01:17]} 39. Re5 {[%clk 0:00:12]}  f6 {[%clk 0:01:18]} 40. Re8 {[%clk 0:00:09]}  Qh5 {[%clk 0:01:16]} 41. g4 {[%clk 0:00:03]}  Rh1+ {[%clk 0:01:16]} 0-1


[Site "https://www.chess.com"]

[Event "Titled Tuesday Blitz June 27 Early 2023"]
[White "Delorme, Axel"]
[Black "Gurel, Ediz"]
[WhiteFideId "632023"]
[BlackFideId "44507356"]
[WhiteElo "2527"]
[BlackElo "2965"]
[Result "0-1"]
[Round "1"]
[TimeControl "180+2"]
[Date "2023.06.27"]
[WhiteClock "0:00:08"]
[BlackClock "0:00:10"]
[Board "22"]

1. e4 {[%clk 0:02:59]}  c5 {[%clk 0:02:58]} 2. Nf3 {[%clk 0:02:59]}  d6 {[%clk 0:02:59]} 3. Bb5+ {[%clk 0:02:59]}  Bd7 {[%clk 0:02:59]} 4. Bxd7+ {[%clk 0:02:59]}  Nxd7 {[%clk 0:03:00]} 5. O-O {[%clk 0:02:59]}  Ngf6 {[%clk 0:03:01]} 6. Qe2 {[%clk 0:03:00]}  e6 {[%clk 0:03:01]} 7. c4 {[%clk 0:03:00]}  Be7 {[%clk 0:03:02]} 8. d4 {[%clk 0:02:59]}  cxd4 {[%clk 0:03:01]} 9. Nxd4 {[%clk 0:03:00]}  O-O {[%clk 0:03:02]} 10. b3 {[%clk 0:03:00]}  Rc8 {[%clk 0:03:02]} 11. Bb2 {[%clk 0:03:00]}  d5 {[%clk 0:02:57]} 12. cxd5 {[%clk 0:02:33]}  exd5 {[%clk 0:02:58]} 13. Nc3 {[%clk 0:02:33]}  dxe4 {[%clk 0:02:53]} 14. Nxe4 {[%clk 0:02:34]}  Nxe4 {[%clk 0:02:53]} 15. Qxe4 {[%clk 0:02:34]}  Bf6 {[%clk 0:02:54]} 16. Rad1 {[%clk 0:02:30]}  Nc5 {[%clk 0:02:46]} 17. Qb1 {[%clk 0:02:25]}  Qb6 {[%clk 0:02:40]} 18. Nf5 {[%clk 0:02:17]}  Rfd8 {[%clk 0:02:41]} 19. Qa1 {[%clk 0:02:06]}  Rxd1 {[%clk 0:02:22]} 20. Rxd1 {[%clk 0:02:04]}  Ne4 {[%clk 0:02:22]} 21. Ne3 {[%clk 0:00:53]}  Nxf2 {[%clk 0:01:20]} 22. Bxf6 {[%clk 0:00:47]}  Nxd1 {[%clk 0:01:09]} 23. Bd4 {[%clk 0:00:46]}  Qd6 {[%clk 0:00:55]} 24. Qxd1 {[%clk 0:00:45]}  Rd8 {[%clk 0:00:55]} 25. Nc2 {[%clk 0:00:29]}  Qf4 {[%clk 0:00:54]} 26. h3 {[%clk 0:00:20]}  h6 {[%clk 0:00:54]} 27. Qe2 {[%clk 0:00:14]}  Rxd4 {[%clk 0:00:50]} 28. Nxd4 {[%clk 0:00:15]}  Qxd4+ {[%clk 0:00:51]} 29. Kh1 {[%clk 0:00:15]}  Qd7 {[%clk 0:00:50]} 30. Qe3 {[%clk 0:00:13]}  a6 {[%clk 0:00:50]} 31. Kh2 {[%clk 0:00:13]}  Qc7+ {[%clk 0:00:50]} 32. Kh1 {[%clk 0:00:13]}  b5 {[%clk 0:00:50]} 33. a3 {[%clk 0:00:12]}  Qd7 {[%clk 0:00:48]} 34. b4 {[%clk 0:00:12]}  Kh7 {[%clk 0:00:46]} 35. Qe4+ {[%clk 0:00:12]}  g6 {[%clk 0:00:46]} 36. Qe3 {[%clk 0:00:12]}  Qd6 {[%clk 0:00:45]} 37. Qf3 {[%clk 0:00:12]}  Kg7 {[%clk 0:00:45]} 38. Qc3+ {[%clk 0:00:12]}  Qf6 {[%clk 0:00:46]} 39. Qe3 {[%clk 0:00:12]}  h5 {[%clk 0:00:45]} 40. Kg1 {[%clk 0:00:11]}  h4 {[%clk 0:00:45]} 41. Kh1 {[%clk 0:00:11]}  g5 {[%clk 0:00:44]} 42. Kg1 {[%clk 0:00:11]}  Qf4 {[%clk 0:00:40]} 43. Qc3+ {[%clk 0:00:07]}  f6 {[%clk 0:00:37]} 44. Qd3 {[%clk 0:00:06]}  Qc7 {[%clk 0:00:35]} 45. Kf1 {[%clk 0:00:05]}  Qe7 {[%clk 0:00:23]} 46. Kg1 {[%clk 0:00:04]}  Kh6 {[%clk 0:00:22]} 47. Kf2 {[%clk 0:00:03]}  Qe5 {[%clk 0:00:22]} 48. Kg1 {[%clk 0:00:03]}  Qf4 {[%clk 0:00:17]} 49. Qd8 {[%clk 0:00:03]}  Qc1+ {[%clk 0:00:15]} 50. Kh2 {[%clk 0:00:04]}  Qf4+ {[%clk 0:00:16]} 51. Kg1 {[%clk 0:00:03]}  Qe3+ {[%clk 0:00:16]} 52. Kh2 {[%clk 0:00:03]}  Qe6 {[%clk 0:00:16]} 53. Qh8+ {[%clk 0:00:03]}  Kg6 {[%clk 0:00:17]} 54. Qd8 {[%clk 0:00:03]}  f5 {[%clk 0:00:15]} 55. Kg1 {[%clk 0:00:03]}  Qe1+ {[%clk 0:00:15]} 56. Kh2 {[%clk 0:00:02]}  Qe5+ {[%clk 0:00:15]} 57. Kg1 {[%clk 0:00:03]}  Qf6 {[%clk 0:00:15]} 58. Qd3 {[%clk 0:00:03]}  Qe7 {[%clk 0:00:12]} 59. Qf3 {[%clk 0:00:03]}  Qe1+ {[%clk 0:00:12]} 60. Kh2 {[%clk 0:00:03]}  Qe5+ {[%clk 0:00:13]} 61. Kg1 {[%clk 0:00:04]}  Qd4+ {[%clk 0:00:12]} 62. Kh2 {[%clk 0:00:04]}  Qd6+ {[%clk 0:00:07]} 63. Kg1 {[%clk 0:00:03]}  Qe6 {[%clk 0:00:07]} 64. Qd3 {[%clk 0:00:03]}  Kh6 {[%clk 0:00:07]} 65. Qc3 {[%clk 0:00:03]}  Kg6 {[%clk 0:00:04]} 66. Qd3 {[%clk 0:00:03]}  Qf6 {[%clk 0:00:03]} 67. Qd2 {[%clk 0:00:03]}  Qa1+ {[%clk 0:00:03]} 68. Kh2 {[%clk 0:00:03]}  Qxa3 {[%clk 0:00:03]} 69. Qd6+ {[%clk 0:00:04]}  Kh5 {[%clk 0:00:03]} 70. Qf8 {[%clk 0:00:04]}  Qg3+ {[%clk 0:00:03]} 71. Kg1 {[%clk 0:00:03]}  Qe1+ {[%clk 0:00:04]} 72. Kh2 {[%clk 0:00:04]}  Qe5+ {[%clk 0:00:05]} 73. Kg1 {[%clk 0:00:04]}  Qe6 {[%clk 0:00:05]} 74. Qh8+ {[%clk 0:00:04]}  Kg6 {[%clk 0:00:06]} 75. Qb8 {[%clk 0:00:03]}  g4 {[%clk 0:00:05]} 76. hxg4 {[%clk 0:00:03]}  fxg4 {[%clk 0:00:06]} 77. Qf4 {[%clk 0:00:04]}  Qe1+ {[%clk 0:00:04]} 78. Kh2 {[%clk 0:00:04]}  Qg3+ {[%clk 0:00:03]} 79. Qxg3 {[%clk 0:00:04]}  hxg3+ {[%clk 0:00:04]} 80. Kxg3 {[%clk 0:00:04]}  Kg5 {[%clk 0:00:05]} 81. Kf2 {[%clk 0:00:04]}  Kf4 {[%clk 0:00:05]} 82. Ke2 {[%clk 0:00:01]}  Ke4 {[%clk 0:00:06]} 83. Kf2 {[%clk 0:00:01]}  Kd4 {[%clk 0:00:02]} 84. Kg3 {[%clk 0:00:02]}  Kc4 {[%clk 0:00:03]} 85. Kxg4 {[%clk 0:00:03]}  Kxb4 {[%clk 0:00:04]} 86. Kh5 {[%clk 0:00:03]}  a5 {[%clk 0:00:04]} 87. g4 {[%clk 0:00:04]}  a4 {[%clk 0:00:05]} 88. g5 {[%clk 0:00:05]}  a3 {[%clk 0:00:05]} 89. g6 {[%clk 0:00:06]}  a2 {[%clk 0:00:06]} 90. g7 {[%clk 0:00:07]}  a1=Q {[%clk 0:00:07]} 91. g8=Q {[%clk 0:00:08]}  Qh1+ {[%clk 0:00:07]} 92. Kg6 {[%clk 0:00:08]}  Qg1+ {[%clk 0:00:08]} 93. Kf7 {[%clk 0:00:09]}  Qxg8+ {[%clk 0:00:09]} 94. Kxg8 {[%clk 0:00:08]}  Kc4 {[%clk 0:00:10]} 0-1


[Site "https://www.chess.com"]

[Event "Titled Tuesday Blitz June 27 Early 2023"]
[White "Turzo, Attila"]
[Black "Sanal, Vahap"]
[WhiteFideId "704954"]
[BlackFideId "6300545"]
[WhiteElo "2525"]
[BlackElo "2959"]
[Result "0-1"]
[Round "1"]
[TimeControl "180+2"]
[Date "2023.06.27"]
[WhiteClock "0:00:07"]
[BlackClock "0:00:32"]
[Board "24"]

1. d4 {[%clk 0:02:49]}  Nf6 {[%clk 0:02:56]} 2. c4 {[%clk 0:02:50]}  g6 {[%clk 0:02:56]} 3. g3 {[%clk 0:02:50]}  Bg7 {[%clk 0:02:56]} 4. Bg2 {[%clk 0:02:50]}  O-O {[%clk 0:02:56]} 5. Nf3 {[%clk 0:02:51]}  d6 {[%clk 0:02:57]} 6. O-O {[%clk 0:02:52]}  c6 {[%clk 0:02:57]} 7. Nc3 {[%clk 0:02:52]}  Qb6 {[%clk 0:02:56]} 8. b3 {[%clk 0:02:49]}  e5 {[%clk 0:02:57]} 9. dxe5 {[%clk 0:02:39]}  dxe5 {[%clk 0:02:57]} 10. e4 {[%clk 0:02:31]}  Bg4 {[%clk 0:02:55]} 11. h3 {[%clk 0:02:28]}  Bxf3 {[%clk 0:02:55]} 12. Bxf3 {[%clk 0:02:29]}  Rd8 {[%clk 0:02:42]} 13. Qc2 {[%clk 0:02:13]}  Nbd7 {[%clk 0:02:39]} 14. Be3 {[%clk 0:02:05]}  Qc7 {[%clk 0:02:39]} 15. c5 {[%clk 0:02:05]}  Nf8 {[%clk 0:02:39]} 16. Rfd1 {[%clk 0:01:56]}  Ne6 {[%clk 0:02:37]} 17. Ne2 {[%clk 0:01:50]}  h5 {[%clk 0:02:30]} 18. h4 {[%clk 0:01:42]}  Ng4 {[%clk 0:02:27]} 19. Bxg4 {[%clk 0:01:41]}  hxg4 {[%clk 0:02:28]} 20. Rxd8+ {[%clk 0:01:38]}  Rxd8 {[%clk 0:02:28]} 21. b4 {[%clk 0:01:31]}  a5 {[%clk 0:02:21]} 22. a3 {[%clk 0:01:31]}  axb4 {[%clk 0:02:11]} 23. axb4 {[%clk 0:01:32]}  Qd7 {[%clk 0:02:12]} 24. Qc4 {[%clk 0:01:16]}  Bf6 {[%clk 0:02:00]} 25. Kg2 {[%clk 0:01:14]}  Kg7 {[%clk 0:02:00]} 26. Nc3 {[%clk 0:01:12]}  Nd4 {[%clk 0:01:56]} 27. Rd1 {[%clk 0:01:10]}  Qe7 {[%clk 0:01:50]} 28. Ne2 {[%clk 0:01:00]}  Nf3 {[%clk 0:01:45]} 29. Qc2 {[%clk 0:00:50]}  Rh8 {[%clk 0:01:41]} 30. Ng1 {[%clk 0:00:46]}  Nd4 {[%clk 0:01:20]} 31. Bxd4 {[%clk 0:00:42]}  exd4 {[%clk 0:01:21]} 32. Ne2 {[%clk 0:00:35]}  Bxh4 {[%clk 0:01:21]} 33. Rh1 {[%clk 0:00:24]}  Bf6 {[%clk 0:01:20]} 34. Rxh8 {[%clk 0:00:24]}  Kxh8 {[%clk 0:01:21]} 35. Qd3 {[%clk 0:00:21]}  Qe5 {[%clk 0:01:22]} 36. Nf4 {[%clk 0:00:18]}  Kg7 {[%clk 0:01:20]} 37. Ne2 {[%clk 0:00:19]}  Qe6 {[%clk 0:01:16]} 38. Nc1 {[%clk 0:00:18]}  Be5 {[%clk 0:01:14]} 39. Nb3 {[%clk 0:00:19]}  Qd7 {[%clk 0:01:13]} 40. Nd2 {[%clk 0:00:19]}  f5 {[%clk 0:01:10]} 41. Nc4 {[%clk 0:00:19]}  Qe6 {[%clk 0:01:09]} 42. exf5 {[%clk 0:00:18]}  gxf5 {[%clk 0:01:09]} 43. Kg1 {[%clk 0:00:17]}  Bf6 {[%clk 0:01:01]} 44. Nd2 {[%clk 0:00:16]}  Kg6 {[%clk 0:01:01]} 45. Nb3 {[%clk 0:00:16]}  Qe1+ {[%clk 0:01:01]} 46. Kg2 {[%clk 0:00:15]}  Qe4+ {[%clk 0:01:00]} 47. Qxe4 {[%clk 0:00:15]}  fxe4 {[%clk 0:01:00]} 48. Nd2 {[%clk 0:00:14]}  Kf5 {[%clk 0:01:01]} 49. Kf1 {[%clk 0:00:14]}  d3 {[%clk 0:01:01]} 50. Nc4 {[%clk 0:00:14]}  Bc3 {[%clk 0:00:58]} 51. Nd6+ {[%clk 0:00:13]}  Ke5 {[%clk 0:00:58]} 52. b5 {[%clk 0:00:13]}  cxb5 {[%clk 0:00:56]} 53. Nxb5 {[%clk 0:00:13]}  Bb4 {[%clk 0:00:53]} 54. Nd6 {[%clk 0:00:12]}  Bxc5 {[%clk 0:00:53]} 55. Nxb7 {[%clk 0:00:12]}  Bb4 {[%clk 0:00:52]} 56. Nd8 {[%clk 0:00:12]}  Kd5 {[%clk 0:00:50]} 57. Nf7 {[%clk 0:00:12]}  Bd2 {[%clk 0:00:49]} 58. Kg2 {[%clk 0:00:10]}  Ke6 {[%clk 0:00:41]} 59. Nd8+ {[%clk 0:00:10]}  Ke5 {[%clk 0:00:38]} 60. Nf7+ {[%clk 0:00:11]}  Kd5 {[%clk 0:00:35]} 61. Kf1 {[%clk 0:00:11]}  Bc1 {[%clk 0:00:36]} 62. Nd8 {[%clk 0:00:10]}  Kc4 {[%clk 0:00:35]} 63. Nf7 {[%clk 0:00:10]}  Kb3 {[%clk 0:00:31]} 64. Ne5 {[%clk 0:00:10]}  d2 {[%clk 0:00:32]} 65. Ke2 {[%clk 0:00:07]}  Kc2 {[%clk 0:00:32]} 66. Nxg4 {[%clk 0:00:07]}  d1=Q# {[%clk 0:00:32]} 0-1


[Site "https://www.chess.com"]

[Event "Titled Tuesday Blitz June 27 Early 2023"]
[White "Jones, Gawain C B"]
[Black "Ljukin, Sergei"]
[WhiteFideId "409561"]
[BlackFideId "14102200"]
[WhiteElo "2952"]
[BlackElo "2525"]
[Result "1-0"]
[Round "1"]
[TimeControl "180+2"]
[Date "2023.06.27"]
[WhiteClock "0:01:43"]
[BlackClock "0:00:41"]
[Board "27"]

1. Nf3 {[%clk 0:03:00]}  d5 {[%clk 0:02:53]} 2. g3 {[%clk 0:03:00]}  Nc6 {[%clk 0:02:53]} 3. d4 {[%clk 0:02:59]}  Bg4 {[%clk 0:02:54]} 4. Bg2 {[%clk 0:02:59]}  Qd7 {[%clk 0:02:53]} 5. c3 {[%clk 0:02:58]}  Bh3 {[%clk 0:02:51]} 6. Bxh3 {[%clk 0:02:54]}  Qxh3 {[%clk 0:02:51]} 7. b4 {[%clk 0:02:54]}  Qg2 {[%clk 0:02:31]} 8. Rg1 {[%clk 0:02:53]}  Qh3 {[%clk 0:02:31]} 9. g4 {[%clk 0:02:49]}  h5 {[%clk 0:01:48]} 10. Rg3 {[%clk 0:02:48]}  hxg4 {[%clk 0:01:48]} 11. Rxh3 {[%clk 0:02:49]}  Rxh3 {[%clk 0:01:48]} 12. Ng1 {[%clk 0:02:45]}  Rxh2 {[%clk 0:01:47]} 13. Bf4 {[%clk 0:02:34]}  Rh1 {[%clk 0:01:46]} 14. Kf1 {[%clk 0:02:34]}  Nf6 {[%clk 0:01:33]} 15. b5 {[%clk 0:02:27]}  Na5 {[%clk 0:01:32]} 16. Qa4 {[%clk 0:02:26]}  b6 {[%clk 0:01:32]} 17. Nd2 {[%clk 0:02:20]}  e6 {[%clk 0:01:28]} 18. c4 {[%clk 0:02:08]}  Bd6 {[%clk 0:01:26]} 19. Bxd6 {[%clk 0:02:04]}  cxd6 {[%clk 0:01:26]} 20. c5 {[%clk 0:02:00]}  dxc5 {[%clk 0:01:21]} 21. dxc5 {[%clk 0:02:00]}  e5 {[%clk 0:01:03]} 22. Rc1 {[%clk 0:01:49]}  Rc8 {[%clk 0:00:41]} 23. c6 {[%clk 0:01:43]} 1-0


[Site "https://www.chess.com"]